[Event "Open Nuevo Centro. Jornada 2"]
[Site "Chess.com"]
[Date "2020.06.26"]
[Round "1"]
[White "Martinez Hernandez, Paula"]
[Black "Mora Bort, Miguel Ángel"]
[Result "1-0"]
[WhiteElo "2037"]
[BlackElo "1152"]
[TimeControl "180+2"]
[EndTime "10:39:32 PDT"]
[Termination "Victoria de pauliximartinez por abandono"]

1. e4 {[%clk 0:03:01.9]} 1... e6 {[%clk 0:02:57.9]} 2. d4 {[%clk 0:03:02.3]}
2... d5 {[%clk 0:02:58.5]} 3. e5 {[%clk 0:02:58.4]} 3... c5 {[%clk 0:02:58.2]}
4. c3 {[%clk 0:02:56.4]} 4... Qb6 {[%clk 0:02:58.2]} 5. Nf3 {[%clk 0:02:42.6]}
5... Nc6 {[%clk 0:02:58.3]} 6. a3 {[%clk 0:02:40.7]} 6... Bd7 {[%clk 0:02:55.3]}
7. b4 {[%clk 0:02:39.2]} 7... cxd4 {[%clk 0:02:55.9]} 8. cxd4 {[%clk 0:02:40.1]}
8... Rc8 {[%clk 0:02:54.8]} 9. Be3 {[%clk 0:02:38.1]} 9... Nge7 {[%clk
0:02:45.8]} 10. Bd3 {[%clk 0:02:36.9]} 10... Nf5 {[%clk 0:02:45.9]} 11. Nbd2
{[%clk 0:02:27.2]} 11... Nxe3 {[%clk 0:02:36.1]} 12. fxe3 {[%clk 0:02:27.7]}
12... Be7 {[%clk 0:02:35.1]} 13. O-O {[%clk 0:02:28.2]} 13... O-O {[%clk
0:02:34.1]} 14. Qe1 {[%clk 0:02:29.2]} 14... f6 {[%clk 0:02:32.9]} 15. Qg3
{[%clk 0:02:26.7]} 15... fxe5 {[%clk 0:02:30.4]} 16. Nxe5 {[%clk 0:02:27]} 16...
Nxe5 {[%clk 0:02:29.7]} 17. Qxe5 {[%clk 0:02:26.3]} 17... Bf6 {[%clk 0:02:25.7]}
18. Qh5 {[%clk 0:02:25.7]} 18... h6 {[%clk 0:02:20.8]} 19. Qg6 {[%clk
0:02:23.6]} 19... Be8 {[%clk 0:01:55.3]} 20. Qh7+ {[%clk 0:02:11.3]} 20... Kf7
{[%clk 0:01:55.6]} 21. Nf3 {[%clk 0:01:52.6]} 21... Ke7 {[%clk 0:01:52.4]} 22.
Rac1 {[%clk 0:01:44]} 22... Bd7 {[%clk 0:01:48.6]} 23. Rxc8 {[%clk 0:01:42.3]}
23... Rxc8 {[%clk 0:01:47.6]} 24. Nd2 {[%clk 0:01:33.2]} 24... Rf8 {[%clk
0:01:33.4]} 25. Nb3 {[%clk 0:01:27.7]} 25... Bb5 {[%clk 0:01:11.2]} 26. Bxb5
{[%clk 0:01:24.9]} 26... Qxb5 {[%clk 0:01:11]} 27. Qc2 {[%clk 0:01:24.1]} 27...
Qc6 {[%clk 0:00:57.2]} 28. Qxc6 {[%clk 0:01:21.4]} 28... bxc6 {[%clk 0:00:57.1]}
29. Rf3 {[%clk 0:01:11.5]} 29... Bg5 {[%clk 0:00:56.4]} 30. Kf2 {[%clk
0:01:12.2]} 30... Rxf3+ {[%clk 0:00:53.1]} 31. gxf3 {[%clk 0:01:08.2]} 31... Kd6
{[%clk 0:00:48.6]} 32. Ke2 {[%clk 0:01:05]} 32... Be7 {[%clk 0:00:44.4]} 33. Kd3
{[%clk 0:01:05.5]} 33... Kc7 {[%clk 0:00:45.1]} 34. e4 {[%clk 0:01:06.6]} 34...
Bd6 {[%clk 0:00:44.1]} 35. h3 {[%clk 0:01:02.3]} 35... Be7 {[%clk 0:00:37.5]}
36. Nd2 {[%clk 0:00:55.6]} 36... Bg5 {[%clk 0:00:36]} 37. Nb3 {[%clk 0:00:56.7]}
37... Be7 {[%clk 0:00:36]} 38. Ke3 {[%clk 0:00:50.6]} 38... Bg5+ {[%clk
0:00:35.9]} 39. f4 {[%clk 0:00:51.6]} 39... Be7 {[%clk 0:00:35.5]} 40. e5 {[%clk
0:00:51.8]} 40... Bh4 {[%clk 0:00:33.9]} 41. Kf3 {[%clk 0:00:52.7]} 41... Be7
{[%clk 0:00:33.5]} 42. Kg4 {[%clk 0:00:53.9]} 42... g6 {[%clk 0:00:33.7]} 43. h4
{[%clk 0:00:54.4]} 43... Bd8 {[%clk 0:00:26.5]} 44. Nc5 {[%clk 0:00:51.2]} 44...
Be7 {[%clk 0:00:15.9]} 45. Nxe6+ {[%clk 0:00:51.5]} 45... Kd7 {[%clk 0:00:16.8]}
46. Nc5+ {[%clk 0:00:52.4]} 46... Bxc5 {[%clk 0:00:15.8]} 47. bxc5 {[%clk
0:00:51.7]} 47... Ke6 {[%clk 0:00:16.6]} 48. h5 {[%clk 0:00:51]} 48... gxh5+
{[%clk 0:00:11.3]} 49. Kxh5 {[%clk 0:00:51.5]} 49... Kf5 {[%clk 0:00:10.1]} 50.
Kxh6 {[%clk 0:00:52.3]} 50... a6 {[%clk 0:00:05.8]} 51. Kg7 {[%clk 0:00:51.3]}
51... Ke6 {[%clk 0:00:03.5]} 52. Kg6 {[%clk 0:00:51.7]} 52... a5 {[%clk
0:00:03.7]} 53. f5+ {[%clk 0:00:52.9]} 53... Ke7 {[%clk 0:00:04.6]} 54. Kg7
{[%clk 0:00:53.3]} 54... Ke8 {[%clk 0:00:04.7]} 55. f6 {[%clk 0:00:54.6]} 1

[Event "Open Nuevo Centro. Jornada 2"]
[Site "Chess.com"]
[Date "2020.06.26"]
[Round "1"]
[White "Rodriguez, Mathias"]
[Black "Zakharash, Georgii"]
[Result "1-0"]
[WhiteElo "1971"]
[BlackElo "1049"]
[TimeControl "180+2"]
[EndTime "10:39:52 PDT"]
[Termination "Victoria de niguil por jaque mate"]

1. e4 {[%clk 0:02:59.5]} 1... c5 {[%clk 0:02:53.7]} 2. Nf3 {[%clk 0:02:57.8]}
2... d6 {[%clk 0:02:50.5]} 3. Bb5+ {[%clk 0:02:57.1]} 3... Nd7 {[%clk
0:02:44.5]} 4. O-O {[%clk 0:02:55.4]} 4... e6 {[%clk 0:02:41.7]} 5. c3 {[%clk
0:02:53.5]} 5... a6 {[%clk 0:02:36.4]} 6. Bxd7+ {[%clk 0:02:52.7]} 6... Bxd7
{[%clk 0:02:33.5]} 7. d4 {[%clk 0:02:54.6]} 7... Be7 {[%clk 0:02:30]} 8. Re1
{[%clk 0:02:39.3]} 8... Nf6 {[%clk 0:02:27.2]} 9. e5 {[%clk 0:02:31]} 9... dxe5
{[%clk 0:02:23.5]} 10. dxe5 {[%clk 0:02:32.8]} 10... Nd5 {[%clk 0:02:19.2]} 11.
c4 {[%clk 0:02:32.3]} 11... Nb6 {[%clk 0:02:12.5]} 12. b3 {[%clk 0:02:28.7]}
12... O-O {[%clk 0:02:08.9]} 13. Qe2 {[%clk 0:02:22]} 13... h6 {[%clk
0:02:04.1]} 14. Nc3 {[%clk 0:02:02.1]} 14... Bc6 {[%clk 0:02:01.2]} 15. Be3
{[%clk 0:02:01.3]} 15... Nd7 {[%clk 0:01:56.7]} 16. Rad1 {[%clk 0:02:00.9]}
16... b5 {[%clk 0:01:52.4]} 17. cxb5 {[%clk 0:01:55.1]} 17... axb5 {[%clk
0:01:50.6]} 18. Nxb5 {[%clk 0:01:57]} 18... Qb8 {[%clk 0:01:44]} 19. a4 {[%clk
0:01:53]} 19... Nxe5 {[%clk 0:01:40.5]} 20. Nxe5 {[%clk 0:01:14.2]} 20... Qxe5
{[%clk 0:01:38.9]} 21. Rc1 {[%clk 0:01:16]} 21... Qd5 {[%clk 0:01:24.8]} 22. f3
{[%clk 0:01:13.8]} 22... Qxb3 {[%clk 0:01:20.4]} 23. Bxc5 {[%clk 0:01:11.8]}
23... Bxc5+ {[%clk 0:01:15.6]} 24. Rxc5 {[%clk 0:01:13.7]} 24... Bxb5 {[%clk
0:01:03.4]} 25. axb5 {[%clk 0:01:15.6]} 25... Rfb8 {[%clk 0:00:55.8]} 26. Rec1
{[%clk 0:01:06.5]} 26... Ra4 {[%clk 0:00:51.4]} 27. Rc8+ {[%clk 0:00:22.5]}
27... Rxc8 {[%clk 0:00:47.5]} 28. Rxc8+ {[%clk 0:00:24.4]} 28... Kh7 {[%clk
0:00:44.7]} 29. Qc2+ {[%clk 0:00:25.1]} 29... Qxc2 {[%clk 0:00:38.9]} 30. Rxc2
{[%clk 0:00:27]} 30... Rb4 {[%clk 0:00:34.2]} 31. Rc5 {[%clk 0:00:26.3]} 31...
Rb1+ {[%clk 0:00:24.6]} 32. Kf2 {[%clk 0:00:26.2]} 32... Rb2+ {[%clk 0:00:23.5]}
33. Kg3 {[%clk 0:00:26.1]} 33... Rb3 {[%clk 0:00:11.8]} 34. Kf4 {[%clk
0:00:26.6]} 34... Rb4+ {[%clk 0:00:11.4]} 35. Ke5 {[%clk 0:00:27.2]} 35... f6+
{[%clk 0:00:11.9]} 36. Kxe6 {[%clk 0:00:28.2]} 36... Rb1 {[%clk 0:00:11.7]} 37.
Kd6 {[%clk 0:00:26]} 37... Rb2 {[%clk 0:00:12.6]} 38. Kc6 {[%clk 0:00:24.9]}
38... Rxg2 {[%clk 0:00:13.5]} 39. b6 {[%clk 0:00:26.2]} 39... Rb2 {[%clk
0:00:13.6]} 40. Rb5 {[%clk 0:00:27]} 40... Rxb5 {[%clk 0:00:14.5]} 41. Kxb5
{[%clk 0:00:27.7]} 41... Kg6 {[%clk 0:00:15.6]} 42. b7 {[%clk 0:00:29.6]} 42...
Kf7 {[%clk 0:00:17]} 43. b8=Q {[%clk 0:00:31.5]} 43... Ke7 {[%clk 0:00:18.5]}
44. Kc6 {[%clk 0:00:31.1]} 44... Ke6 {[%clk 0:00:19.5]} 45. Qg8+ {[%clk
0:00:31.5]} 45... Kf5 {[%clk 0:00:19.8]} 46. Qxg7 {[%clk 0:00:33]} 46... Kf4
{[%clk 0:00:19.7]} 47. Qxf6+ {[%clk 0:00:33.8]} 47... Ke3 {[%clk 0:00:13.4]} 48.
Qxh6+ {[%clk 0:00:35]} 48... Kxf3 {[%clk 0:00:14]} 49. Qg5 {[%clk 0:00:36.4]}
49... Kf2 {[%clk 0:00:14.6]} 50. h4 {[%clk 0:00:38.3]} 50... Kf3 {[%clk
0:00:15.5]} 51. h5 {[%clk 0:00:40.2]} 51... Kf2 {[%clk 0:00:14.4]} 52. h6 {[%clk
0:00:42.1]} 52... Ke2 {[%clk 0:00:15.6]} 53. h7 {[%clk 0:00:44]} 53... Kf3
{[%clk 0:00:16.6]} 54. h8=Q {[%clk 0:00:45.9]} 54... Ke2 {[%clk 0:00:17.5]} 55.
Qe8+ {[%clk 0:00:46.5]} 55... Kf2 {[%clk 0:00:18.1]} 56. Qf6+ {[%clk 0:00:47.1]}
56... Kg2 {[%clk 0:00:18.7]} 57. Qg8+ {[%clk 0:00:48.9]} 57... Kh2 {[%clk
0:00:19.5]} 58. Qh6# {[%clk 0:00:50.8]} 1

[Event "Open Nuevo Centro. Jornada 2"]
[Site "Chess.com"]
[Date "2020.06.26"]
[Round "1"]
[White "Perrot, Fabien "]
[Black "Yuste Valenzuela, Alejandro"]
[Result "0-1"]
[WhiteElo "1001"]
[BlackElo "1858"]
[TimeControl "180+2"]
[EndTime "10:39:53 PDT"]
[Termination "Victoria de alejandrito290 por tiempo"]

1. d4 {[%clk 0:02:58]} 1... Nf6 {[%clk 0:02:59.9]} 2. c4 {[%clk 0:02:54.8]} 2...
g6 {[%clk 0:03:00.9]} 3. Nc3 {[%clk 0:02:17.3]} 3... Bg7 {[%clk 0:03:01.4]} 4.
Bg5 {[%clk 0:02:11.6]} 4... O-O {[%clk 0:02:59.9]} 5. e3 {[%clk 0:02:11.9]} 5...
d6 {[%clk 0:02:59.6]} 6. Bd3 {[%clk 0:02:10.6]} 6... Nbd7 {[%clk 0:02:59.3]} 7.
Nf3 {[%clk 0:02:10.6]} 7... h6 {[%clk 0:02:59.7]} 8. Bh4 {[%clk 0:02:10.3]} 8...
g5 {[%clk 0:03:00.7]} 9. Bg3 {[%clk 0:02:11.7]} 9... Nh5 {[%clk 0:03:01.4]} 10.
O-O {[%clk 0:02:02.3]} 10... Nxg3 {[%clk 0:03:02.4]} 11. hxg3 {[%clk 0:02:04.2]}
11... e5 {[%clk 0:03:01.3]} 12. d5 {[%clk 0:02:02.4]} 12... Nc5 {[%clk
0:03:01.4]} 13. Bc2 {[%clk 0:02:00.1]} 13... a5 {[%clk 0:03:02.1]} 14. a4 {[%clk
0:01:58.4]} 14... f5 {[%clk 0:03:02.6]} 15. Nb5 {[%clk 0:01:42]} 15... h5 {[%clk
0:02:37.7]} 16. Qd2 {[%clk 0:01:30.4]} 16... h4 {[%clk 0:02:25.6]} 17. gxh4
{[%clk 0:01:23]} 17... g4 {[%clk 0:02:18.1]} 18. Ng5 {[%clk 0:01:14.8]} 18...
Bf6 {[%clk 0:02:16.3]} 19. e4 {[%clk 0:00:54.7]} 19... f4 {[%clk 0:02:13]} 20.
Rfe1 {[%clk 0:00:39.9]} 20... Bxg5 {[%clk 0:02:11.8]} 21. hxg5 {[%clk
0:00:41.8]} 21... Qxg5 {[%clk 0:02:13.7]} 22. Kf1 {[%clk 0:00:37.8]} 22... g3
{[%clk 0:02:04.7]} 23. f3 {[%clk 0:00:31.5]} 23... Qe7 {[%clk 0:01:50.5]} 24.
Ke2 {[%clk 0:00:18.6]} 24... Kg7 {[%clk 0:01:45]} 25. Rh1 {[%clk 0:00:12.9]}
25... Bd7 {[%clk 0:01:38.9]} 26. Nxc7 {[%clk 0:00:10.9]} 26... Rac8 {[%clk
0:01:33.9]} 27. Nb5 {[%clk 0:00:11.5]} 27... Bxb5 {[%clk 0:01:29.5]} 28. axb5
{[%clk 0:00:10.5]} 28... b6 {[%clk 0:01:29.7]} 29. Ra2 {[%clk 0:00:05.8]} 29...
Rh8 {[%clk 0:01:29.8]} 30. Rxh8 {[%clk 0:00:05.5]} 30... Rxh8 {[%clk 0:01:31.7]}
31. Ra1 {[%clk 0:00:07.3]} 31... Rh2 {[%clk 0:01:31.7]} 32. Rg1 {[%clk
0:00:08.7]} 32... Qh4 {[%clk 0:01:24.1]} 33. Kd1 {[%clk 0:00:09.4]} 33... Rh1
{[%clk 0:01:23.1]} 34. Qe1 {[%clk 0:00:08.1]} 34... Rxg1 {[%clk 0:01:21.9]} 35.
Qxg1 {[%clk 0:00:10]} 35... Qh2 {[%clk 0:01:23.4]} 36. Qf1 {[%clk 0:00:08]}
36... Nd7 {[%clk 0:01:09.8]} 37. Ke1 {[%clk 0:00:09.2]} 37... Nf6 {[%clk
0:01:10]} 38. b3 {[%clk 0:00:09.4]} 38... Qh6 {[%clk 0:01:07.3]} 39. Ke2 {[%clk
0:00:09.7]} 39... Qh5 {[%clk 0:01:04.8]} 40. Qg1 {[%clk 0:00:09]} 40... Kf7
{[%clk 0:01:00.6]} 41. Qf1 {[%clk 0:00:09.9]} 41... Ke7 {[%clk 0:01:00.5]} 42.
Bd3 {[%clk 0:00:10.7]} 42... Nd7 {[%clk 0:00:58.6]} 43. Bc2 {[%clk 0:00:10.9]}
43... Nc5 {[%clk 0:01:00]} 44. Kd2 {[%clk 0:00:09.5]} 44... Qh8 {[%clk
0:00:53.2]} 45. Ke2 {[%clk 0:00:10.4]} 45... Kd7 {[%clk 0:00:43.2]} 46. Kd2
{[%clk 0:00:10.1]} 46... Kc7 {[%clk 0:00:44.7]} 47. Ke2 {[%clk 0:00:10]} 47...
Qh5 {[%clk 0:00:41]} 48. Kd2 {[%clk 0:00:09.9]} 48... Nb7 {[%clk 0:00:40]} 49.
Ke2 {[%clk 0:00:08.7]} 49... a4 {[%clk 0:00:41.5]} 50. bxa4 {[%clk 0:00:06.1]}
50... Na5 {[%clk 0:00:42.6]} 0

[Event "Open Nuevo Centro. Jornada 2"]
[Site "Chess.com"]
[Date "2020.06.26"]
[Round "1"]
[White "Donate Moreno, David"]
[Black "Campos Gambuti, Luis María"]
[Result "0-1"]
[WhiteElo "1520"]
[BlackElo "2414"]
[TimeControl "180+2"]
[EndTime "10:39:59 PDT"]
[Termination "Victoria de Tangalangafacv por abandono"]

1. e4 {[%clk 0:02:58.3]} 1... d5 {[%clk 0:03:00.3]} 2. exd5 {[%clk 0:02:59]}
2... Qxd5 {[%clk 0:03:02.2]} 3. Nc3 {[%clk 0:03:00.6]} 3... Qd6 {[%clk
0:03:03.1]} 4. d4 {[%clk 0:03:01.6]} 4... Nf6 {[%clk 0:03:04.5]} 5. Nf3 {[%clk
0:03:01.4]} 5... Nc6 {[%clk 0:03:05.8]} 6. g3 {[%clk 0:02:56.7]} 6... Bg4 {[%clk
0:03:05.7]} 7. Bf4 {[%clk 0:02:57]} 7... Qd7 {[%clk 0:03:04.2]} 8. d5 {[%clk
0:02:53]} 8... O-O-O {[%clk 0:02:34.1]} 9. Bg2 {[%clk 0:02:23.1]} 9... Nxd5
{[%clk 0:02:30.1]} 10. Nxd5 {[%clk 0:02:20.4]} 10... Qxd5 {[%clk 0:02:30.1]} 11.
Qxd5 {[%clk 0:02:20.8]} 11... Rxd5 {[%clk 0:02:29.8]} 12. Ng5 {[%clk 0:02:21.2]}
12... Rxg5 {[%clk 0:02:03.8]} 13. Bxg5 {[%clk 0:02:20.7]} 13... f6 {[%clk
0:02:04.8]} 14. Be3 {[%clk 0:02:21.2]} 14... e5 {[%clk 0:02:03.2]} 15. O-O
{[%clk 0:02:17.8]} 15... a6 {[%clk 0:01:58]} 16. h4 {[%clk 0:01:59.4]} 16... Nd4
{[%clk 0:01:47.9]} 17. Bxd4 {[%clk 0:01:56.3]} 17... exd4 {[%clk 0:01:49.8]} 18.
Kh2 {[%clk 0:01:57]} 18... Kb8 {[%clk 0:01:44.5]} 19. Bh3 {[%clk 0:01:56.7]}
19... Bf3 {[%clk 0:01:33.4]} 20. Bg2 {[%clk 0:01:53.3]} 20... Bh5 {[%clk
0:01:31.9]} 21. f4 {[%clk 0:01:45]} 21... Bb4 {[%clk 0:01:25]} 22. Bf3 {[%clk
0:01:43.7]} 22... Bg6 {[%clk 0:01:25.2]} 23. a3 {[%clk 0:01:35.2]} 23... Bd2
{[%clk 0:01:25.3]} 24. Rf2 {[%clk 0:01:17.1]} 24... Be3 {[%clk 0:01:25.8]} 25.
Re2 {[%clk 0:01:17.4]} 25... c5 {[%clk 0:01:24.1]} 26. c3 {[%clk 0:01:11.5]}
26... Bd3 {[%clk 0:01:22.9]} 27. Rxe3 {[%clk 0:01:05.4]} 27... dxe3 {[%clk
0:01:22.3]} 28. Re1 {[%clk 0:01:05.2]} 28... Re8 {[%clk 0:01:21.7]} 29. Be2
{[%clk 0:01:05.5]} 29... c4 {[%clk 0:01:20.3]} 30. Kg2 {[%clk 0:00:55.6]} 30...
Kc7 {[%clk 0:01:19.2]} 31. Kf3 {[%clk 0:00:48.5]} 31... f5 {[%clk 0:01:19.8]}
32. Bxd3 {[%clk 0:00:48.2]} 32... cxd3 {[%clk 0:01:20.6]} 33. Rxe3 {[%clk
0:00:46.8]} 33... d2 {[%clk 0:01:14.2]} 34. Rd3 {[%clk 0:00:46.3]} 34... Re1
{[%clk 0:01:13.2]} 35. Rxd2 {[%clk 0:00:45.8]} 35... g6 {[%clk 0:01:14.4]} 36.
Re2 {[%clk 0:00:44.4]} 36... Rb1 {[%clk 0:01:11.5]} 37. h5 {[%clk 0:00:40.2]}
37... gxh5 {[%clk 0:01:04.4]} 38. Rh2 {[%clk 0:00:39.9]} 38... Kd6 {[%clk
0:01:02.9]} 39. Rxh5 {[%clk 0:00:38.3]} 39... Rxb2 {[%clk 0:01:03.1]} 40. Rxf5
{[%clk 0:00:38.5]} 40... Rb3 {[%clk 0:01:04.5]} 41. Rf6+ {[%clk 0:00:39.2]}
41... Ke7 {[%clk 0:01:02.5]} 42. Rh6 {[%clk 0:00:39.8]} 42... b5 {[%clk
0:01:00.2]} 43. Rxh7+ {[%clk 0:00:39.7]} 43... Kf6 {[%clk 0:01:01.9]} 44. Rc7
{[%clk 0:00:37.6]} 44... Rxa3 {[%clk 0:01:02.5]} 45. g4 {[%clk 0:00:34.3]} 45...
b4 {[%clk 0:01:02.4]} 46. g5+ {[%clk 0:00:34.2]} 46... Kf5 {[%clk 0:01:01]} 47.
Rf7+ {[%clk 0:00:26.3]} 47... Ke6 {[%clk 0:01:01.2]} 48. Rf6+ {[%clk 0:00:26.9]}
48... Ke7 {[%clk 0:01:02.4]} 49. Ke2 {[%clk 0:00:24.9]} 49... b3 {[%clk
0:00:44.1]} 50. Rb6 {[%clk 0:00:21.7]} 50... a5 {[%clk 0:00:44.7]} 51. g6 {[%clk
0:00:22.1]} 51... Ra2+ {[%clk 0:00:44.8]} 52. Kd1 {[%clk 0:00:21.8]} 52... a4
{[%clk 0:00:46.2]} 53. f5 {[%clk 0:00:19.5]} 53... Rf2 {[%clk 0:00:43.7]} 54. g7
{[%clk 0:00:17.4]} 54... Kf7 {[%clk 0:00:44]} 55. Rb7+ {[%clk 0:00:18.2]} 55...
Kg8 {[%clk 0:00:45.1]} 56. Ra7 {[%clk 0:00:19]} 56... Rf1+ {[%clk 0:00:41.5]}
57. Kd2 {[%clk 0:00:19.6]} 57... b2 {[%clk 0:00:43]} 58. Rb7 {[%clk 0:00:16.5]}
58... b1=Q {[%clk 0:00:43.4]} 59. Rxb1 {[%clk 0:00:16.7]} 59... Rxb1 {[%clk
0:00:45.3]} 60. c4 {[%clk 0:00:17.4]} 60... a3 {[%clk 0:00:45.6]} 0

[Event "Open Nuevo Centro. Jornada 2"]
[Site "Chess.com"]
[Date "2020.06.26"]
[Round "1"]
[White "Álvarez Aranda, Jesús"]
[Black "Marín Corresa, Arturo"]
[Result "0-1"]
[WhiteElo "1343"]
[BlackElo "2223"]
[TimeControl "180+2"]
[EndTime "10:42:02 PDT"]
[Termination "Victoria de Estivella por tiempo"]

1. e4 {[%clk 0:02:58.9]} 1... c5 {[%clk 0:02:52.6]} 2. Nf3 {[%clk 0:02:59.1]}
2... Nc6 {[%clk 0:02:52.3]} 3. d4 {[%clk 0:02:58.4]} 3... cxd4 {[%clk 0:02:52]}
4. Nxd4 {[%clk 0:02:59.6]} 4... Nf6 {[%clk 0:02:51.4]} 5. Nxc6 {[%clk
0:02:55.3]} 5... bxc6 {[%clk 0:02:51.1]} 6. Nc3 {[%clk 0:02:56.4]} 6... e5
{[%clk 0:02:51.1]} 7. g3 {[%clk 0:02:52.6]} 7... Be7 {[%clk 0:02:45.6]} 8. Bg2
{[%clk 0:02:52.8]} 8... O-O {[%clk 0:02:44.9]} 9. O-O {[%clk 0:02:52.6]} 9... d6
{[%clk 0:02:43.7]} 10. Bg5 {[%clk 0:02:52]} 10... Rb8 {[%clk 0:02:43.1]} 11.
Bxf6 {[%clk 0:02:52]} 11... Bxf6 {[%clk 0:02:43.1]} 12. b3 {[%clk 0:02:51.6]}
12... Be6 {[%clk 0:02:37.8]} 13. Rb1 {[%clk 0:02:51.2]} 13... Qa5 {[%clk
0:02:35.4]} 14. Ne2 {[%clk 0:02:45.8]} 14... Rfd8 {[%clk 0:02:34.1]} 15. c4
{[%clk 0:02:42.1]} 15... Rd7 {[%clk 0:02:11.9]} 16. Qc2 {[%clk 0:02:40.9]} 16...
d5 {[%clk 0:02:03.6]} 17. exd5 {[%clk 0:02:38.5]} 17... cxd5 {[%clk 0:02:05.5]}
18. Rfd1 {[%clk 0:02:31]} 18... d4 {[%clk 0:02:04.8]} 19. Be4 {[%clk 0:02:28.7]}
19... g6 {[%clk 0:02:03.4]} 20. Bd3 {[%clk 0:02:25]} 20... Rbd8 {[%clk 0:02:02]}
21. f3 {[%clk 0:02:21.3]} 21... Bg7 {[%clk 0:02:01.5]} 22. g4 {[%clk 0:02:18.2]}
22... Qc7 {[%clk 0:01:53.9]} 23. Ng3 {[%clk 0:02:16.4]} 23... a5 {[%clk
0:01:52.6]} 24. Ne4 {[%clk 0:02:13]} 24... h6 {[%clk 0:01:44.6]} 25. g5 {[%clk
0:02:11.3]} 25... h5 {[%clk 0:01:39.8]} 26. Nf6+ {[%clk 0:02:08.3]} 26... Bxf6
{[%clk 0:01:40.1]} 27. gxf6 {[%clk 0:02:08.7]} 27... Kh7 {[%clk 0:01:31.4]} 28.
Qd2 {[%clk 0:02:04.2]} 28... Qd6 {[%clk 0:01:15.6]} 29. Qg5 {[%clk 0:02:02.6]}
29... Rh8 {[%clk 0:01:09.7]} 30. h4 {[%clk 0:01:58.1]} 30... Kg8 {[%clk
0:01:09.5]} 31. Re1 {[%clk 0:01:50.3]} 31... Kf8 {[%clk 0:01:07.7]} 32. Qxe5
{[%clk 0:01:48.5]} 32... Qxe5 {[%clk 0:01:07.8]} 33. Rxe5 {[%clk 0:01:48.7]}
33... Ra7 {[%clk 0:01:06.2]} 34. Rb5 {[%clk 0:01:40.4]} 34... Kg8 {[%clk
0:00:57.7]} 35. Rb8+ {[%clk 0:01:38.4]} 35... Kh7 {[%clk 0:00:58.3]} 36. Rxh8+
{[%clk 0:01:37.6]} 36... Kxh8 {[%clk 0:00:59.2]} 37. Re1 {[%clk 0:01:32.2]}
37... Ra8 {[%clk 0:00:56.7]} 38. Bxg6 {[%clk 0:01:29]} 38... Rg8 {[%clk
0:00:56.1]} 39. Kf2 {[%clk 0:01:18.3]} 39... Rxg6 {[%clk 0:00:56.4]} 40. Re4
{[%clk 0:01:16.4]} 40... Rxf6 {[%clk 0:00:57.1]} 41. Rxd4 {[%clk 0:01:17.1]}
41... Bg4 {[%clk 0:00:57.1]} 42. Rd8+ {[%clk 0:01:15.9]} 42... Kg7 {[%clk
0:00:57.6]} 43. Rd3 {[%clk 0:01:15.1]} 43... Bf5 {[%clk 0:00:53.2]} 44. Rd5
{[%clk 0:01:09.4]} 44... Bg6 {[%clk 0:00:52.9]} 45. Rxa5 {[%clk 0:01:09.2]}
45... Rf4 {[%clk 0:00:54.2]} 46. Kg3 {[%clk 0:01:07.8]} 46... Rd4 {[%clk
0:00:55.1]} 47. c5 {[%clk 0:01:06.3]} 47... Rd3 {[%clk 0:00:55.8]} 48. c6 {[%clk
0:01:05.4]} 48... Rc3 {[%clk 0:00:56.6]} 49. Ra6 {[%clk 0:01:04.2]} 49... Be4
{[%clk 0:00:57.1]} 50. Kf4 {[%clk 0:01:03.4]} 50... Bxc6 {[%clk 0:00:56.8]} 51.
b4 {[%clk 0:01:02.2]} 51... Bxf3 {[%clk 0:00:57.2]} 52. b5 {[%clk 0:00:55.5]}
52... Be2 {[%clk 0:00:57.8]} 53. Ra5 {[%clk 0:00:53.5]} 53... Rf3+ {[%clk
0:00:56.9]} 54. Ke4 {[%clk 0:00:52.8]} 54... Rh3 {[%clk 0:00:56.1]} 55. b6
{[%clk 0:00:49]} 55... Bf3+ {[%clk 0:00:56]} 56. Kf4 {[%clk 0:00:44.3]} 56...
Bh1 {[%clk 0:00:56.7]} 57. Kg5 {[%clk 0:00:39.8]} 57... Rg3+ {[%clk 0:00:56.6]}
58. Kf4 {[%clk 0:00:38.7]} 58... Rg2 {[%clk 0:00:55.6]} 59. Ra7 {[%clk 0:00:33]}
59... Rg4+ {[%clk 0:00:55.7]} 60. Ke5 {[%clk 0:00:31.8]} 60... Rb4 {[%clk
0:00:55.8]} 61. b7 {[%clk 0:00:23.1]} 61... Bxb7 {[%clk 0:00:55.9]} 62. a3
{[%clk 0:00:20.7]} 62... Rb1 {[%clk 0:00:55.7]} 63. a4 {[%clk 0:00:20.8]} 63...
Bf3 {[%clk 0:00:56.3]} 64. a5 {[%clk 0:00:20.9]} 64... Be2 {[%clk 0:00:55.5]}
65. Kf4 {[%clk 0:00:19.2]} 65... Ra1 {[%clk 0:00:55.3]} 66. Ke3 {[%clk
0:00:18.9]} 66... Bg4 {[%clk 0:00:55.2]} 67. Kf4 {[%clk 0:00:18.2]} 67... Be6
{[%clk 0:00:54.6]} 68. Ke5 {[%clk 0:00:18.3]} 68... Ra4 {[%clk 0:00:54.7]} 69.
Kd6 {[%clk 0:00:17.4]} 69... Rxh4 {[%clk 0:00:54.8]} 70. Kc7 {[%clk 0:00:18]}
70... Ra4 {[%clk 0:00:55]} 71. Kb6 {[%clk 0:00:17.9]} 71... Bc4 {[%clk 0:00:55]}
72. Rc7 {[%clk 0:00:14.8]} 72... Be2 {[%clk 0:00:54.3]} 73. Rc2 {[%clk
0:00:10.2]} 73... Bc4 {[%clk 0:00:54.2]} 74. Rxc4 {[%clk 0:00:10.1]} 74... Rxc4
{[%clk 0:00:54.4]} 75. a6 {[%clk 0:00:10.7]} 75... Ra4 {[%clk 0:00:54.9]} 76.
Kb7 {[%clk 0:00:10.9]} 76... h4 {[%clk 0:00:55.4]} 77. a7 {[%clk 0:00:10.6]}
77... h3 {[%clk 0:00:55.6]} 78. a8=Q {[%clk 0:00:11.2]} 78... Rxa8 {[%clk
0:00:56.3]} 79. Kxa8 {[%clk 0:00:09.8]} 79... h2 {[%clk 0:00:58.2]} 80. Ka7
{[%clk 0:00:08.2]} 80... h1=Q {[%clk 0:01:00.1]} 81. Kb6 {[%clk 0:00:08.7]}
81... Qb1+ {[%clk 0:01:02]} 82. Kc5 {[%clk 0:00:08.6]} 82... Qd3 {[%clk
0:01:02.2]} 0

[Event "Open Nuevo Centro. Jornada 2"]
[Site "Chess.com"]
[Date "2020.06.26"]
[Round "2"]
[White "Rabbani Perez, Ayoub "]
[Black "URSARIU, NIKOLAS VICTOR"]
[Result "0-1"]
[WhiteElo "222"]
[BlackElo "1062"]
[TimeControl "180+2"]
[EndTime "10:44:56 PDT"]
[Termination "Victoria de NikolasVictor por jaque mate"]

1. g4 {[%clk 0:02:53.2]} 1... e5 {[%clk 0:02:59.5]} 2. g5 {[%clk 0:02:50]} 2...
Qxg5 {[%clk 0:02:58.5]} 3. Nh3 {[%clk 0:02:47.6]} 3... Qd8 {[%clk 0:02:55.7]} 4.
Ng5 {[%clk 0:02:39.9]} 4... Qxg5 {[%clk 0:02:55.2]} 5. Bh3 {[%clk 0:02:37.4]}
5... Qh5 {[%clk 0:02:45.9]} 6. Bxd7+ {[%clk 0:02:38.9]} 6... Bxd7 {[%clk
0:02:45.7]} 7. h4 {[%clk 0:02:38.2]} 7... Nf6 {[%clk 0:02:40.2]} 8. O-O {[%clk
0:02:36.5]} 8... Qg4+ {[%clk 0:02:37.5]} 9. Kh2 {[%clk 0:02:30]} 9... Qxh4+
{[%clk 0:02:36]} 10. Kg2 {[%clk 0:02:28.8]} 10... Qh3+ {[%clk 0:02:34.2]} 11.
Kg1 {[%clk 0:02:25.1]} 11... Bd6 {[%clk 0:02:29.6]} 12. f4 {[%clk 0:02:23.8]}
12... exf4 {[%clk 0:02:26.6]} 13. Rxf4 {[%clk 0:02:23.5]} 13... Bxf4 {[%clk
0:02:26.9]} 14. e3 {[%clk 0:02:23.6]} 14... Qh2+ {[%clk 0:02:26.3]} 15. Kf1
{[%clk 0:02:21.8]} 15... Bh3+ {[%clk 0:02:20.2]} 16. Ke1 {[%clk 0:02:19.2]}
16... Bg3# {[%clk 0:02:20.6]} 0